bitfinex-derivatives/quotes_ETHF0:USTF0_20251225
["timestamp","ask_amount","ask_price","bid_price","bid_amount"]
[1766636724508,9.289,2945.7,2944.2,3.943]
[1766636724805,0.99955174,2945.6,2944.2,3.943]
[1766636725006,9.289,2945.7,2944.2,3.943]
[1766636725209,0.99955174,2945.6,2944.2,3.943]
[1766636725408,9.289,2945.7,2944.2,3.943]
[1766636725707,0.99951813,2945.6,2944.2,3.943]
[1766636725908,9.289,2945.7,2944.2,3.943]
[1766636726109,0.99951813,2945.6,2944.2,3.943]
[1766636726305,9.289,2945.7,2944.2,3.943]
[1766636726606,0.99949128,2945.6,2944.2,3.943]
[1766636726802,9.289,2945.7,2944.2,3.943]
[1766636727002,0.99949128,2945.6,2944.2,3.943]
[1766636727203,9.289,2945.7,2944.2,3.943]
[1766636727410,0.9994692,2945.6,2944.2,3.943]
[1766636727710,9.289,2945.7,2944.2,3.943]
[1766636727910,0.9994692,2945.6,2944.2,3.943]
[1766636728208,9.289,2945.7,2944.2,3.943]
[1766636728509,0.99945134,2945.6,2944.2,3.943]
[1766636728708,9.289,2945.7,2944.2,3.943]
[1766636728911,0.99945146,2945.6,2944.2,3.943]
[1766636729103,9.289,2945.7,2944.2,3.943]
[1766636729304,0.9994374,2945.6,2944.2,3.943]
[1766636729504,9.289,2945.7,2944.2,3.943]
[1766636729704,0.99943728,2945.6,2944.2,3.943]
[1766636729910,9.289,2945.7,2944.2,3.943]
[1766636730110,0.99943728,2945.6,2944.2,3.943]
[1766636730303,9.289,2945.7,2944.2,3.943]
[1766636730503,0.99942958,2945.6,2944.2,3.943]
[1766636730702,9.289,2945.7,2944.2,3.943]
[1766636730897,0.99942958,2945.6,2944.2,3.943]
[1766636731110,9.289,2945.7,2944.2,3.943]
[1766636731311,0.99942066,2945.6,2944.2,3.943]
[1766636731512,9.289,2945.7,2944.2,3.943]
[1766636731706,0.99942066,2945.6,2944.2,3.943]
[1766636732008,9.289,2945.7,2944.2,3.943]
[1766636735915,0.99940626,2945.6,2944.2,3.943]
[1766636736516,9.289,2945.7,2944.2,3.943]
[1766636741814,9.289,2945.7,2944.1,1.51683669]
[1766636742020,0.53086681,2945.6,2944.2,17.922]
[1766636742318,9.289,2945.7,2944.2,17.922]
[1766636742619,0.53088976,2945.6,2944.1,1.51683669]
[1766636742918,0.53089208,2945.5,2944.3,6.033]
[1766636743110,9.289,2945.7,2944.3,6.033]
[1766636743311,0.53089267,2945.6,2944.3,6.033]
[1766636743611,0.53089267,2945.5,2944.3,6.033]
[1766636743812,3.397,2945.4,2944.3,6.033]
[1766636754223,3.397,2945.4,2944.4,3.397]
[1766636761226,3.397,2945.4,2944.0,11.73009307]
[1766636761423,1.53153208,2945.3,2944.1,9.429]
[1766636761623,1.53153208,2945.2,2944.1,9.429]
[1766636761923,4.39761847,2945.1,2944.1,9.429]
[1766636762124,3.397,2945.1,2944.1,9.429]
[1766636768727,3.397,2945.1,2944.2,9.436]
[1766636770333,0.16989,2945.0,2943.7,0.00292186]
[1766636770524,9.02401438,2944.9,2943.7,0.00292186]
[1766636770728,4.92592146,2944.8,2943.7,0.00292186]
[1766636771033,1.52892146,2944.7,2943.7,0.00292186]
[1766636771227,0.99790708,2944.6,2943.7,0.00292186]
[1766636771430,4.39411571,2944.5,2943.9,0.00509476]
[1766636771734,4.39919603,2944.4,2943.5,3.397]
[1766636771931,3.40209476,2944.4,2943.5,3.397]
[1766636772531,3.40209476,2944.4,2943.7,0.00509476]
[1766636774122,3.40209476,2944.4,2943.5,3.39967603]
[1766636774319,3.40209476,2944.4,2943.5,0.00267603]
[1766636774519,3.40209476,2944.4,2943.5,3.39967603]
[1766636775830,3.40209476,2944.4,2943.5,0.00267603]
[1766636776028,3.40209476,2944.4,2943.5,3.39967603]
[1766636777239,3.40209476,2944.4,2943.7,0.00509476]
[1766636777838,3.40209476,2944.4,2943.5,3.39967603]
[1766636778936,3.40209476,2944.4,2943.7,0.00339652]
[1766636799354,1.00986773,2944.3,2943.7,0.00339652]
[1766636799559,3.40209476,2944.4,2943.7,0.00339652]
[1766636799759,1.00986783,2944.3,2943.7,0.00339652]
[1766636799963,3.40209476,2944.4,2943.7,0.00339652]
[1766636800157,1.00986781,2944.3,2943.7,0.00339652]
[1766636800461,1.00986781,2944.2,2943.7,0.00339652]
[1766636800662,3.40209476,2944.4,2943.7,0.00339652]
[1766636800862,1.01121045,2944.3,2943.7,0.00339652]
[1766636801059,1.01121045,2944.2,2943.7,0.00339652]
[1766636801265,3.40209476,2944.4,2943.7,0.00339652]
[1766636801465,1.01128155,2944.3,2943.7,0.00339652]
[1766636801664,1.01128155,2944.2,2943.7,0.00339652]
[1766636801866,3.40209476,2944.4,2943.7,0.00339652]
[1766636802065,1.01129155,2944.3,2943.7,0.00339652]
[1766636802269,1.01129155,2944.2,2943.7,0.00339652]
[1766636802469,3.40209476,2944.4,2943.7,0.00339652]
[1766636802766,1.0112876,2944.3,2943.7,0.00339652]
[1766636802967,1.0112876,2944.2,2943.7,0.00339652]
[1766636803166,3.40209476,2944.4,2943.7,0.00339652]
[1766636803368,1.01128584,2944.3,2943.7,0.00339652]
[1766636803568,1.01128584,2944.2,2943.7,0.00339652]
[1766636803768,3.40209476,2944.4,2943.7,0.00339652]
[1766636804068,1.01128582,2944.3,2943.7,0.00339652]
[1766636804269,1.01128582,2944.2,2943.7,0.00339652]
[1766636804566,3.40209476,2944.4,2943.7,0.00339652]
[1766636804869,1.01128209,2944.3,2943.7,0.00339652]
[1766636805070,1.01128209,2944.2,2943.7,0.00339652]
[1766636805269,3.40209476,2944.4,2943.7,0.00339652]
[1766636805470,1.01127809,2944.3,2943.7,0.00339652]
[1766636805671,1.01127809,2944.2,2943.7,0.00339652]
[1766636805969,3.40209476,2944.4,2943.7,0.00339652]
[1766636806159,1.0112794,2944.3,2943.7,0.00339652]
[1766636806364,1.0112794,2944.2,2943.7,0.00339652]
[1766636806568,3.40209476,2944.4,2943.7,0.00339652]
[1766636806769,1.01127958,2944.3,2943.7,0.00339652]
[1766636806964,1.01127958,2944.2,2943.7,0.00339652]
[1766636807159,3.40209476,2944.4,2943.7,0.00339652]
[1766636807365,1.01128156,2944.3,2943.7,0.00339652]
[1766636807658,1.01128156,2944.2,2943.7,0.00339652]
[1766636807867,3.40209476,2944.4,2943.7,0.00339652]
[1766636808166,1.01128159,2944.3,2943.7,0.00339652]
[1766636808367,1.01128159,2944.2,2943.7,0.00339652]
[1766636808570,3.40209476,2944.4,2943.7,0.00339652]
[1766636808770,1.01128538,2944.3,2943.7,0.00339652]
[1766636808969,1.01128538,2944.2,2943.7,0.00339652]
[1766636809270,3.40209476,2944.4,2943.7,0.00339652]
[1766636809575,1.01128904,2944.3,2943.7,0.00339652]
[1766636809773,1.01128904,2944.2,2943.7,0.00339652]
[1766636809977,3.40209476,2944.4,2943.7,0.00339652]
[1766636810173,1.01169992,2944.3,2943.7,0.00339652]
[1766636810474,1.01169992,2944.2,2943.7,0.00339652]
[1766636810777,3.40209476,2944.4,2943.7,0.00339652]
[1766636810972,1.01170213,2944.3,2943.7,0.00339652]
[1766636811172,1.01170213,2944.2,2943.7,0.00339652]
[1766636811374,3.40209476,2944.4,2943.7,0.00339652]
[1766636811572,1.01170323,2944.3,2943.7,0.00339652]
[1766636811771,1.01170323,2944.2,2943.7,0.00339652]
[1766636812071,3.40209476,2944.4,2943.7,0.00339652]
[1766636812270,1.0117196,2944.3,2943.7,0.00339652]
[1766636812470,1.0117196,2944.2,2943.7,0.00339652]
[1766636812674,3.40209476,2944.4,2943.7,0.00339652]
[1766636812874,1.01172932,2944.3,2943.7,0.00339652]
[1766636813079,1.01172932,2944.2,2943.7,0.00339652]
[1766636813272,3.40209476,2944.4,2943.5,3.39967603]
[1766636813472,1.01173705,2944.3,2943.5,3.39967603]
[1766636813676,1.01173705,2944.2,2943.5,3.39967603]
[1766636813877,3.40209476,2944.4,2943.5,3.39967603]
[1766636814078,1.01173711,2944.3,2943.5,3.39967603]
[1766636814377,1.01173711,2944.2,2943.5,3.39967603]
[1766636814580,3.40209476,2944.4,2943.5,3.39967603]
[1766636814880,1.54285594,2944.3,2943.5,3.39967603]
[1766636815179,1.01174626,2944.2,2943.5,3.39967603]
[1766636815374,3.40209476,2944.4,2943.5,3.39967603]
[1766636815577,1.54285447,2944.3,2943.5,3.39967603]
[1766636815779,1.01174422,2944.2,2943.5,3.39967603]
[1766636816079,3.40209476,2944.4,2943.5,3.39967603]
[1766636816278,1.54285394,2944.3,2943.5,3.39967603]
[1766636816480,1.01174339,2944.2,2943.5,3.39967603]
[1766636816682,3.40209476,2944.4,2943.5,3.39967603]
[1766636816876,1.54312578,2944.3,2943.5,3.39967603]
[1766636817083,1.01201516,2944.2,2943.5,3.39967603]
[1766636817282,3.40209476,2944.4,2943.5,3.39967603]
[1766636817581,1.54314451,2944.3,2943.5,3.39967603]
[1766636817783,1.01203389,2944.2,2943.5,3.39967603]
[1766636817982,3.40209476,2944.4,2943.5,3.39967603]
[1766636818174,1.54314633,2944.3,2943.5,3.39967603]
[1766636818375,1.01203588,2944.2,2943.5,3.39967603]
[1766636818581,3.40209476,2944.4,2943.5,3.39967603]
[1766636818780,1.54316895,2944.3,2943.5,3.39967603]
[1766636818980,1.01205849,2944.2,2943.5,3.39967603]
[1766636819281,3.398,2944.2,2943.5,3.39967603]
[1766636838894,3.398,2944.2,2943.5,0.00267603]
[1766636839195,3.398,2944.2,2943.5,3.40067603]
[1766636840293,3.398,2944.2,2943.5,0.00267603]
[1766636849504,3.398,2944.2,2943.5,3.40067603]
[1766636866318,3.398,2944.2,709.16,1.24642687]
[1766636866319,9.006,2944.2,2943.2,0.0140633]
[1766636866526,1.22221209,2944.0,2942.4,3.398]
[1766636866826,4.93850869,2943.9,2942.4,3.66869372]
[1766636867027,1.54050869,2943.8,2942.4,3.398]
[1766636867227,1.0093959,2943.7,2942.4,3.398]
[1766636867429,3.398,2943.6,2942.4,3.40111765]
[1766636868034,3.398,2943.6,2942.4,4.80328893]
[1766636877744,3.398,2943.6,2942.4,3.40111765]
[1766636902753,0.10687287,2944.3,2942.4,3.40111765]
[1766636902951,4.40724241,2944.2,2942.4,3.57115765]
[1766636903158,3.399,2944.2,2942.4,3.57115765]
[1766636908256,3.399,2944.2,2942.5,6.03]
[1766636910158,3.399,2944.2,2942.5,7.10095433]
[1766636912760,1.00766865,2944.1,2942.5,7.10095433]
[1766636912957,3.399,2944.2,2942.5,7.10095433]
[1766636913158,1.00765879,2944.1,2942.5,7.10095433]
[1766636913347,3.399,2944.2,2942.5,7.10095433]
[1766636913547,1.00767218,2944.1,2942.5,7.10095433]
[1766636913753,3.399,2944.2,2942.5,7.10095433]
[1766636913952,1.00767215,2944.1,2942.5,7.10095433]
[1766636914149,3.399,2944.2,2942.5,7.10095433]
[1766636914463,1.00772093,2944.1,2942.5,7.10095433]
[1766636914665,3.399,2944.2,2942.5,7.10095433]
[1766636914854,1.00772071,2944.1,2942.5,7.10095433]
[1766636915055,3.399,2944.2,2942.5,7.10095433]
[1766636915263,1.00770158,2944.1,2942.5,7.10095433]
[1766636915463,3.399,2944.2,2942.5,7.10095433]
[1766636915664,1.00766953,2944.1,2942.5,7.10095433]
[1766636915963,3.399,2944.2,2942.5,7.10095433]
[1766636916164,1.00766546,2944.1,2942.5,7.10095433]
[1766636916366,3.399,2944.2,2942.5,7.10095433]
[1766636916558,1.00774409,2944.1,2942.5,7.10095433]
[1766636916758,3.399,2944.2,2942.5,7.10095433]
[1766636916961,1.0076818,2944.1,2942.5,7.10095433]
[1766636917258,3.399,2944.2,2942.5,7.10095433]
[1766636917561,1.00768792,2944.1,2942.5,7.10095433]
[1766636917763,3.399,2944.2,2942.6,8.497]
[1766636917963,1.00768402,2944.1,2942.7,3.398]
[1766636918157,3.399,2944.2,2942.8,6.052]
[1766636918356,1.00767886,2944.1,2942.8,6.052]
[1766636918558,3.399,2944.2,2942.8,6.052]
[1766636918762,1.00767886,2944.1,2942.8,6.052]
[1766636918959,3.399,2944.2,2942.8,6.052]
[1766636919260,1.00767886,2944.1,2942.8,6.052]
[1766636919459,3.399,2944.2,2942.8,6.052]
[1766636919760,1.00767545,2944.1,2942.8,6.052]
[1766636919958,3.399,2944.2,2942.8,6.052]
[1766636920159,1.00758632,2944.1,2942.8,6.052]
[1766636920361,3.399,2944.2,2942.8,6.052]
[1766636920667,1.00756802,2944.1,2942.8,6.052]
[1766636920855,3.399,2944.2,2942.8,6.052]
[1766636921060,1.00759678,2944.1,2942.8,6.052]
[1766636921361,3.399,2944.2,2942.8,6.052]
[1766636921560,1.00761928,2944.1,2942.8,6.052]
[1766636921762,3.399,2944.2,2942.8,6.052]
[1766636921968,1.00761928,2944.1,2942.8,6.052]
[1766636922267,3.399,2944.2,2942.8,6.052]
[1766636922467,1.00764709,2944.1,2942.8,6.052]
[1766636922668,3.399,2944.2,2942.8,6.052]
[1766636922869,1.00764635,2944.1,2942.8,6.052]
[1766636923060,3.399,2944.2,2942.8,6.052]
[1766636923261,1.00766623,2944.1,2942.9,3.398]
[1766636923461,3.399,2944.2,2942.9,3.398]
[1766636923661,1.00766626,2944.1,2942.9,3.398]
[1766636923864,3.399,2944.2,2942.9,3.398]
[1766636924064,1.00766626,2944.1,2942.9,3.398]
[1766636924265,3.399,2944.2,2942.9,3.398]
[1766636924562,1.00770511,2944.1,2942.9,3.398]
[1766636924764,3.399,2944.2,2942.9,3.398]
[1766636924972,1.00770023,2944.1,2942.9,3.398]
[1766636925269,3.399,2944.2,2942.9,3.398]
[1766636925472,1.00774568,2944.1,2942.9,3.398]
[1766636925772,3.399,2944.2,2942.9,3.398]
[1766636925975,1.00774568,2944.1,2942.9,3.398]
[1766636926168,3.399,2944.2,2942.9,3.398]
[1766636926370,1.00779992,2944.1,2942.9,3.398]
[1766636926570,3.399,2944.2,2942.9,3.398]
[1766636926772,1.00779897,2944.1,2942.9,3.398]
[1766636926965,3.399,2944.2,2942.9,3.398]
[1766636927165,1.00779751,2944.1,2942.9,3.398]
[1766636927374,3.399,2944.2,2943.0,9.456]
[1766636927568,1.00783664,2944.1,2943.0,9.456]
[1766636927769,3.399,2944.2,2943.0,9.456]
[1766636927969,1.00784257,2944.1,2943.0,9.456]
[1766636928168,3.399,2944.2,2943.0,9.456]
[1766636928370,1.00792649,2944.1,2943.0,9.456]
[1766636928571,3.399,2944.2,2943.0,9.456]
[1766636928771,1.00792716,2944.1,2943.0,9.456]
[1766636928977,3.399,2944.2,2943.0,9.456]
[1766636929177,1.00794228,2944.1,2943.0,9.456]
[1766636929372,3.399,2944.2,2943.0,9.456]
[1766636929577,1.00803507,2944.1,2943.0,9.456]
[1766636929777,1.00801185,2944.0,2943.0,9.456]
[1766636929973,3.399,2944.2,2943.0,9.456]
[1766636930178,1.00719693,2944.1,2943.0,9.456]
[1766636930378,1.00719693,2944.0,2943.0,9.456]
[1766636930581,3.399,2944.2,2943.0,9.456]
[1766636930880,1.00730586,2944.1,2943.0,9.456]
[1766636931079,1.00730586,2944.0,2943.0,9.456]
[1766636931279,3.399,2944.2,2943.0,9.456]
[1766636931481,1.53860905,2944.1,2943.0,9.456]
[1766636931676,1.00745385,2944.0,2943.0,9.456]
[1766636931880,3.398,2944.0,2943.0,9.456]
[1766636932783,3.398,2944.0,2942.5,1.07095433]
[1766636932981,3.398,2944.0,2942.6,9.455]
[1766636934680,3.398,2944.0,2942.6,10.47301538]
[1766636938191,3.398,2944.0,2942.6,10.47539545]
[1766636942593,3.398,2944.0,2942.6,10.48373585]
[1766636945700,3.398,2944.0,2942.6,1.02873585]
[1766636945896,3.398,2944.0,2942.7,9.477]
[1766636951298,1.00732741,2943.9,2942.7,9.477]
[1766636951500,3.398,2944.0,2942.7,9.477]
[1766636951799,1.00732747,2943.9,2942.7,9.477]
[1766636952000,3.398,2944.0,2942.7,9.477]
[1766636952195,1.00732745,2943.9,2942.7,9.477]
[1766636952396,3.398,2944.0,2942.7,9.477]
[1766636952605,1.0073083,2943.9,2942.7,9.477]
[1766636952804,3.398,2944.0,2942.7,9.477]
[1766636953101,1.00730828,2943.9,2942.7,9.477]
[1766636953402,3.398,2944.0,2942.7,9.477]
[1766636953601,1.00729557,2943.9,2942.7,9.477]
[1766636953796,3.398,2944.0,2942.7,9.477]
[1766636954098,1.00729555,2943.9,2942.7,9.477]
[1766636954300,3.398,2944.0,2942.7,9.477]
[1766636954501,1.00728869,2943.9,2942.7,9.477]
[1766636954698,3.398,2944.0,2942.7,9.477]
[1766636954899,1.00728869,2943.9,2942.7,9.477]
[1766636955098,3.398,2944.0,2942.7,9.477]
[1766636955298,1.00728696,2943.9,2942.7,9.477]
[1766636955500,3.398,2944.0,2942.7,9.477]
[1766636955693,1.00728695,2943.9,2942.7,9.477]
[1766636955893,3.398,2944.0,2942.7,9.477]
[1766636956093,1.00728627,2943.9,2942.7,9.477]
[1766636956290,3.398,2944.0,2942.7,9.477]
[1766636956503,1.00725799,2943.9,2942.7,9.477]
[1766636956704,3.398,2944.0,2942.7,9.477]
[1766636957001,1.00725564,2943.9,2942.7,9.477]
[1766636957202,3.398,2944.0,2942.7,9.477]
[1766636957402,1.00726882,2943.9,2942.7,9.477]
[1766636957602,3.398,2944.0,2942.7,9.477]
[1766636957800,1.00726881,2943.9,2942.7,9.477]
[1766636958002,3.398,2944.0,2942.7,9.477]
[1766636958190,1.00726949,2943.9,2942.7,9.477]
[1766636958394,3.398,2944.0,2942.7,9.477]
[1766636958591,1.0072819,2943.9,2942.7,9.477]
[1766636958801,3.398,2944.0,2942.7,9.477]
[1766636959002,1.00728194,2943.9,2942.7,9.477]
[1766636959203,3.398,2944.0,2942.7,9.477]
[1766636959402,1.00729785,2943.9,2942.7,9.477]
[1766636959604,3.398,2944.0,2942.7,9.477]
[1766636959805,1.00738288,2943.9,2942.7,9.477]
[1766636960006,3.398,2944.0,2942.7,9.477]
[1766636960200,1.00604602,2943.9,2942.7,9.477]
[1766636960400,1.00604602,2943.8,2942.7,9.477]
[1766636960707,3.398,2943.7,2942.7,9.477]
[1766637003444,0.00509476,2944.4,2942.7,9.477]
[1766637003644,1.53682607,2944.3,2942.7,9.477]
[1766637003848,4.4036827,2944.2,2942.7,9.477]
[1766637004054,3.398,2944.2,2942.7,9.477]
[1766637013764,3.398,2944.2,2942.8,0.17002]
[1766637014260,0.00509476,2944.4,2942.9,0.17001]
[1766637014452,0.00509476,2944.4,2943.0,9.476]
[1766637016463,0.00509476,2944.4,2943.0,10.38585112]
[1766637019465,0.00509476,2944.4,2943.0,10.55586112]
[1766637019758,0.00509476,2944.4,2943.1,0.17]
[1766637029058,0.00509476,2944.4,2943.2,17.969]
[1766637103619,0.00509476,2944.4,2943.1,0.17]
[1766637103820,0.00509476,2944.4,2943.2,17.965]
[1766637108420,0.00509476,2944.4,2943.1,0.17]
[1766637108421,0.00509476,2944.4,2943.3,17.964]
[1766637109219,0.00509476,2944.4,2943.3,24.08540427]
[1766637111018,0.00509476,2944.4,2943.3,6.12140427]
[1766637111325,0.00509476,2944.4,2943.4,9.473]
[1766637113028,3.40309476,2944.4,2943.4,9.473]
[1766637113227,3.40309476,2944.4,2943.4,10.39244042]
[1766637116534,3.40309476,2944.4,2943.4,0.91944042]
[1766637116728,1.0082349,2944.3,2943.5,3.398]
[1766637116934,3.40309476,2944.4,2943.5,3.398]
[1766637116935,1.0082349,2944.2,2943.5,9.472]
[1766637117230,3.398,2944.1,2943.5,9.472]
[1766637118127,3.398,2944.1,2943.2,0.92745361]
[1766637118330,1.00731397,2944.0,2943.3,6.074]
[1766637118524,3.398,2944.1,2943.3,6.074]
[1766637118724,1.00731054,2944.0,2943.3,6.074]
[1766637118928,3.398,2944.1,2943.3,6.074]
[1766637119225,1.00731048,2944.0,2943.3,6.074]
[1766637119426,3.398,2944.1,2943.3,6.074]
[1766637119626,1.0068653,2944.0,2943.3,5.8752]
[1766637119831,3.398,2944.1,2943.3,5.8752]
[1766637120032,1.00686316,2944.0,2943.3,5.8752]
[1766637120230,3.398,2944.1,2943.3,5.8752]
[1766637120534,1.00684023,2944.0,2943.3,5.8752]
[1766637120725,3.398,2944.1,2943.3,5.8752]
[1766637120926,1.00684023,2944.0,2943.3,5.8752]
[1766637121229,0.004,2944.2,2943.3,5.8752]
[1766637121432,4.40453012,2944.1,2943.3,5.8752]
[1766637121634,3.398,2944.1,2943.3,5.8752]
[1766637137648,3.2115,2944.1,2943.3,6.75954707]
[1766637137853,0.00509476,2944.4,2943.3,6.75954707]
[1766637138649,3.398,2944.3,2943.3,5.8752]
[1766637158474,1.00841462,2944.2,2943.4,9.468]
[1766637158675,3.398,2944.3,2943.4,9.468]
[1766637158972,1.00847003,2944.2,2943.4,9.468]
[1766637159167,3.398,2944.3,2943.4,9.468]
[1766637159370,1.00851042,2944.2,2943.4,9.468]
[1766637159572,3.398,2944.3,2943.4,9.468]
[1766637159774,1.00851113,2944.2,2943.4,9.468]
[1766637159972,3.398,2944.3,2943.4,9.468]
[1766637160173,1.00851302,2944.2,2943.4,9.468]
[1766637160377,3.398,2944.3,2943.4,9.468]
[1766637160563,1.0085501,2944.2,2943.4,9.468]
[1766637160767,3.398,2944.3,2943.4,9.468]
[1766637160967,1.0085501,2944.2,2943.4,9.468]
[1766637161170,3.398,2944.3,2943.4,9.468]
[1766637161364,1.0088182,2944.2,2943.4,9.468]
[1766637161568,3.398,2944.3,2943.4,9.468]
[1766637161770,1.00881821,2944.2,2943.4,9.468]
[1766637161974,3.398,2944.3,2943.4,9.468]
[1766637162274,1.00881656,2944.2,2943.4,9.468]
[1766637162475,3.398,2944.3,2943.1,0.88955381]
[1766637162675,1.00885678,2944.2,2943.2,4.995]
[1766637162875,3.398,2944.3,2943.2,4.995]
[1766637163075,1.00885222,2944.2,2943.2,4.995]
[1766637163275,3.398,2944.3,2943.2,4.995]
[1766637163578,1.0088919,2944.2,2943.2,4.995]
[1766637163781,3.398,2944.3,2943.2,4.995]
[1766637163977,1.00885757,2944.2,2943.2,3.398]
[1766637164279,3.398,2944.3,2943.2,3.398]
[1766637164471,1.00887697,2944.2,2943.2,3.398]
[1766637164667,3.398,2944.3,2943.2,3.398]
[1766637164878,1.00880219,2944.2,2943.2,3.398]
[1766637165079,1.00878601,2944.1,2943.2,3.398]
[1766637165275,0.00509476,2944.4,2943.2,3.398]
[1766637165475,4.93417914,2944.3,2943.2,3.398]
[1766637165676,1.00879166,2944.2,2943.2,3.398]
[1766637165876,1.00879166,2944.1,2943.2,3.398]
[1766637166074,3.398,2944.0,2943.2,3.398]
[1766637177989,0.00509476,2944.4,2943.2,3.398]
[1766637178178,3.398,2944.2,2943.2,3.398]
[1766637183689,0.00509476,2944.4,2943.2,3.398]
[1766637200105,0.00509476,2944.4,2943.3,8.495]
[1766637207215,0.00509476,2944.4,2943.0,1.0108773]
[1766637207417,0.00509476,2944.4,2943.1,17.958]
[1766637220635,0.00509476,2944.4,2943.2,3.398]
[1766637225539,0.00509476,2944.4,2943.2,11.893]
[1766637230248,0.00509476,2944.4,2943.3,3.398]
[1766637235053,0.00509476,2944.4,2943.4,3.398]
[1766637239857,0.00509476,2944.4,2943.5,3.398]
[1766637244660,0.00509476,2944.4,2943.6,3.398]
[1766637249468,0.00509476,2944.4,2943.7,3.398]
[1766637254269,0.00509476,2944.4,2943.8,3.398]
[1766637280382,3.40073955,2944.5,2943.8,3.398]
[1766637281389,0.00509476,2944.4,2943.9,0.00509476]
[1766637320630,3.40073955,2944.5,2943.9,0.00509476]
[1766637321622,3.40583431,2944.5,2943.9,0.00509476]
[1766637332027,0.00783431,2944.5,2943.9,0.00509476]
[1766637332234,3.398,2945.5,2944.0,6.053]
[1766637332431,1.52259895,2945.4,2944.1,3.398]
[1766637332634,1.01150513,2945.3,2944.1,3.398]
[1766637332930,4.40950513,2945.2,2944.1,3.398]
[1766637333131,0.00509476,2944.9,2944.1,3.398]
[1766637338839,3.40112436,2945.2,2944.1,3.398]
[1766637339838,0.00509476,2944.9,2944.1,3.398]
[1766637351353,0.00509476,2944.9,2944.0,0.72648016]
[1766637351554,0.00509476,2944.9,2944.1,5.015]
[1766637351752,0.00509476,2944.9,2944.2,6.057]
[1766637351954,0.00509476,2944.9,2944.3,3.397]
[1766637361959,0.00509476,2944.9,2944.2,6.057]
[1766637362165,0.00509476,2944.9,2944.3,3.397]
[1766637362358,3.40209476,2944.9,2944.3,3.397]
[1766637362559,3.40209476,2944.9,2944.0,0.73683611]
[1766637362759,1.010015,2944.8,2943.6,3.45254376]
[1766637363067,1.010015,2944.7,2943.6,4.42654376]
[1766637363265,4.407015,2944.6,2943.6,4.42654376]
[1766637363463,3.397,2944.6,2943.6,4.42654376]
[1766637363964,3.397,2944.6,2943.4,0.7383422]
[1766637363965,1.00930236,2944.5,2943.2,0.74509914]
[1766637364163,1.00930236,2944.4,2943.3,3.741]
[1766637364366,3.397,2944.3,2943.4,3.397]
[1766637364866,3.397,2944.3,2943.6,0.00509476]
[1766637370064,0.17934,2944.2,2942.0,0.17007]
[1766637370264,9.49962785,2944.1,2942.3,3.397]
[1766637370460,4.40262785,2944.0,2942.3,3.397]
[1766637370675,6.89562785,2943.9,2942.3,3.4064]
[1766637370865,5.89,2943.9,2942.3,3.4064]
[1766637371772,6.77074708,2943.9,2942.3,3.4064]
[1766637372875,6.76593659,2943.9,2942.3,3.4064]
[1766637373571,6.93589659,2943.9,2942.3,3.4064]
[1766637375678,1.00214568,2943.8,2942.2,3.45360362]
[1766637375876,0.00509476,2943.3,2942.2,3.45360362]
[1766637376178,9.291,2943.2,2942.2,3.398]
[1766637376378,10.18780611,2943.2,2942.2,3.398]
[1766637376776,9.291,2943.2,2942.2,3.4007653]
[1766637376980,10.16528173,2943.2,2942.2,3.4007653]
[1766637378577,10.18480663,2943.2,2942.2,3.4007653]
[1766637378778,9.291,2943.2,2942.2,3.4007653]
[1766637378980,10.1919278,2943.2,2942.2,3.4007653]
[1766637379978,9.291,2943.2,2942.2,3.4007653]
[1766637380179,10.21345111,2943.2,2942.2,3.4007653]
[1766637380781,9.291,2943.2,2942.2,3.4007653]
[1766637381387,10.21345111,2943.2,2942.2,3.4007653]
[1766637382387,10.21506135,2943.2,2942.2,3.4007653]
[1766637382984,9.291,2943.2,2942.2,3.4007653]
[1766637383281,10.21506135,2943.2,2942.2,3.4007653]
[1766637383483,10.20540145,2943.2,2942.2,3.4007653]
[1766637384482,10.20597398,2943.2,2942.2,3.4007653]
[1766637385585,0.00312436,2945.2,2943.2,0.16999]
[1766637385785,0.00312436,2945.2,2943.3,16.76]
[1766637385984,1.94912436,2945.2,2943.4,33.994]
[1766637386580,1.94912436,2945.2,2944.0,0.00509476]
[1766637386887,1.94912436,2945.2,2944.1,9.457]
[1766637387775,0.00509476,2944.9,2944.1,9.457]
[1766637390788,0.00312436,2945.2,2944.1,9.457]
[1766637391089,3.40112436,2945.2,2944.1,9.457]
[1766637391890,0.00509476,2944.9,2944.1,9.457]
[1766637397494,3.40112436,2945.2,2944.1,9.457]
[1766637397794,3.41052436,2945.2,2944.1,9.457]
[1766637398596,0.00509476,2944.9,2944.1,9.457]
[1766637403695,0.01449476,2944.9,2944.1,9.457]
[1766637403895,0.00509476,2944.9,2944.1,9.457]
[1766637405797,0.01449476,2944.9,2944.1,9.457]
[1766637405991,0.00509476,2944.9,2944.1,9.457]
[1766637406896,0.01449476,2944.9,2944.1,9.457]
[1766637407095,0.00509476,2944.9,2944.1,9.457]
[1766637407302,0.01449476,2944.9,2944.1,9.457]
[1766637407503,0.00509476,2944.9,2944.1,9.457]
[1766637416597,0.00509476,2944.9,2944.0,0.00509476]
[1766637416902,0.00509476,2944.9,2944.1,9.454]
[1766637418902,0.00509476,2944.9,2944.2,9.454]
[1766637422316,3.40209476,2944.9,2944.2,9.454]
[1766637465671,0.00509476,2944.9,2944.2,9.454]
[1766637465965,3.40209476,2944.9,2944.2,9.454]
[1766637467256,3.20679476,2944.9,2944.2,9.454]
[1766637468170,0.00509476,2944.8,2944.2,9.454]